Workbook

Sheet C-GEFH W&B
B1: *** Calculator provided as an aid only. PIC is responsible for calculating weight and balance for flight planning ***
B2: Weight and Balance Worksheet | D2: 1975 Cessna 172M | F2: C-GEFH | H2: USAGE:
B3: Item | D3: Weight | E3: Arm | F3: Moment | H3: Fill areas in GREEN
B4: Aircraft Licensed Empty Weight (incl unusable fuel) | D4: 1474.51 lb | E4: =F4/D4 -> 41.88 in | F4: 61749.68 lb-in | H4: Seat Occupancy Table: | J4: Other Information | L4: P.O.H. Limitations
B5: Oil (8 Quarts Maximum) | C5: =K5 -> 7.0 qt | D5: =1.875*C5 -> 13.13 lb | E5: -14.00 in | F5: =D5*E5 -> -183.75 lb-in | H5: Pilot: | I5: 200 lb | J5: Oil (qts): | K5: 7.0 qt | L5: Max Gross Weight = | M5: 2300 lb
B6: Fuel (48 Gallons Maximum Usable) | C6: =K6 -> 24.0 gal | D6: =6*C6 -> 144.00 lb | E6: 48.00 in | F6: 6912.00 lb-in | H6: Copilot: | I6: 0 lb | J6: Fuel (gal): | K6: 24.0 gal | L6: Max Baggage Area 1 = | M6: 120 lb
B7: Front Seats | D7: =SUM(I5,I6) -> 200 lb | E7: 37.00 in | F7: 7400.00 lb-in | H7: Rear Left: | I7: 0 lb | J7: Baggage 1: | K7: 0 lb | L7: Max Baggage Area 2 = | M7: 50 lb
B8: Rear Seats | D8: =SUM(I7,I8) -> 0 lb | E8: 73.00 in | F8: 0.00 lb-in | H8: Rear Right: | I8: 0 lb | J8: Baggage 2: | K8: 5 lb | L8: Aft CG limit = | M8: 47.5 in
B9: Baggage Area 1 | D9: =+K7 -> 0 lb | E9: 95.00 in | F9: 0.00 lb-in | J9: NOTE: Fuel in USG | L9: Fore CG Limit T/O = | M9: 35.0 in
B10: Baggage Area 2 | D10: =+K8 -> 5 lb | E10: 123.00 in | F10: 615.00 lb-in | L10: Fore CG LDG = | M10: 35.0 in
B11: C A L C U L A T E D V A L U E S | H11: Remaining Useful Load: | L11: Max Usable Fuel = | M11: 48.0 gal
B12: TAKE OFF PARAMETERS | D12: =SUM(D4:D11) -> 1836.6 lb | E12: =F12/D12 -> 41.6 in | F12: =SUM(F4:F11) -> 76493 lb-in | G12: =F12/1000 -> 76.49 | H12: =M5-D12 -> 463 LBS | L12: Fuel Min (for safety)= | M12: 8.0 gal
B13: Less Fuel Used | C13: 5.0 gal | D13: =6*C13*-1 -> -30.0 lb | E13: =+E6 -> 48.0 in | F13: =D13*E13 -> -1440 lb-in
B14: LANDING PARAMETERS | D14: =+D12+D13 -> 1806.6 lb | E14: =+F14/D14 -> 41.5 in | F14: =+F13+F12 -> 75053 lb-in | G14: =+F14/1000 -> 75.05
H18: Warnings:
H19: =IF(D12>M5,"Warning: Maximum Gross Weight Exceeded","") -> 
H20: =IF(((D9)>(M6)),"Warning: Too Much Baggage Area 1","") -> 
H21: =IF(((D10)>(M7)),"Warning: Too Much Baggage Area 2","") -> 
H22: =IF(MAX(E12)>M8,"Warning: C.G. Too Far Aft","")&IF((E12<M9),"Warning: C.G. Too Far Forward","") -> 
B23: Utility | E23: Normal | H23: =IF((C6)>M11,"Error: Too Much Fuel","")&IF(C6<M12,"Warning: Low Fuel","")&IF(K6-C13<M12,"Warning: Low Fuel","") -> 
B24: 35 | C24: 1500 | E24: 35 | F24: 1500 | H24: =IF(D14>C25,IF(MAX(E14)>M8,"Warning: C.G. Too Far Aft for Landing","")&IF((E14<M10),"Warning: C.G. Too Far Forward for Landing",""),IF(MAX(E14)>M8,"Warning: C.G. Too Far Aft for Landing","")&IF((E14<B24*1000/C24),"Warning: C.G. Too Far Forward for Landing","")) -> 
B25: 35 | C25: 1950 | E25: 35 | F25: 1950
B26: 35.5 | C26: 2000 | E26: 38.5 | F26: 2300 | H26: SETUP:
B27: 40.5 | C27: 2000 | E27: 38.5 | F27: 2300 | H27: Set the following parameters for your
B28: 40.5 | C28: 1500 | E28: 47.3 | F28: 2300 | H28: specific aircraft:
E29: 47.3 | F29: 1500 | H29: Cell D4: Aircraft Empty Weight
B30: Takeoff | H30: Cell F4: Aircraft Moment
B31: For variable fore CG above 1950 lb | C31: =C33/C32 ->  | E31: CG Range | H31: Cell E5: Oil Arm
B32: CG Weight | C32: =SLOPE(F26:F27,E26:E27)*(C33/1000)+INTERCEPT(F26:F27,E26:E27) ->  | E32: Utility | F32: Normal | H32: Cell E6: Fuel Arm
B33: CG Moment | C33: =(D12-INTERCEPT(F26:F27,E26:E27))/SLOPE(F26:F27,E26:E27)*1000 ->  | E33: =B24*1000/C24 -> 23.3 | F33: =E24*1000/F24 -> 23.3 | H33: Cell E7: Front Seats Arm
E34: =B25*1000/C25 -> 17.9 | F34: =E25*1000/F25 -> 17.9 | H34: Cell E8: Rear Seats Arm
B35: Landing | E35: 17.8 | F35: 16.7 | H35: Cells E9 / E10: Baggage Area Arms
B36: For variable fore CG above 1950 lb | C36: =C38/C37 ->  | E36: 20.3 | F36: 16.7
B37: CG Weight | C37: =SLOPE(F26:F27,E26:E27)*(C38/1000)+INTERCEPT(F26:F27,E26:E27) ->  | E37: 27.0 | F37: 20.6 | H37: If you need to change the envelopes on
B38: CG Moment | C38: =(D14-INTERCEPT(F26:F27,E26:E27))/SLOPE(F26:F27,E26:E27)*1000 ->  | F38: 31.5 | H38: the operating chart: Drag the chart
H39: to the right or down to reveal the cells
H40: behind it and modify them to match the
H41: chart for your aircraft.
H43: Note: Calculation sheet current as of
H44: weight & balance dated 18-APR-2019.
